[Event "*** SCC Grand Prix: Titled Tuesday Blitz"]
[Site "Chess.com"]
[Date "2020.06.23"]
[Round "4"]
[White "Panterov"]
[Black "Sadykov_Ramil"]
[Result "0-1"]
[WhiteElo "2164"]
[BlackElo "2396"]
[TimeControl "180+1"]
[EndTime "10:40:46 PDT"]
[Termination "Sadykov_Ramil won on time"]

1. e4 {[%clk 0:03:00.9]} 1... c6 {[%clk 0:02:59.8]} 2. Nc3 {[%clk 0:02:58.7]}
2... d5 {[%clk 0:03:00.3]} 3. Nf3 {[%clk 0:02:59.5]} 3... Bg4 {[%clk 0:02:58.3]}
4. h3 {[%clk 0:02:58.6]} 4... Bh5 {[%clk 0:02:57.7]} 5. exd5 {[%clk 0:02:56.1]}
5... cxd5 {[%clk 0:02:56.1]} 6. Bb5+ {[%clk 0:02:55.2]} 6... Nc6 {[%clk
0:02:26.5]} 7. d4 {[%clk 0:02:54.6]} 7... Nf6 {[%clk 0:02:23]} 8. g4 {[%clk
0:02:45.2]} 8... Bg6 {[%clk 0:02:22]} 9. Ne5 {[%clk 0:02:45]} 9... Qb6 {[%clk
0:02:19.1]} 10. g5 {[%clk 0:02:38]} 10... Ne4 {[%clk 0:02:08.6]} 11. Nxd5 {[%clk
0:02:37.1]} 11... Qa5+ {[%clk 0:01:32.7]} 12. b4 {[%clk 0:02:36]} 12... Qd8
{[%clk 0:01:24.4]} 13. c4 {[%clk 0:02:16.2]} 13... Rc8 {[%clk 0:01:13.2]} 14.
Qa4 {[%clk 0:02:09.8]} 14... Qd6 {[%clk 0:00:48.7]} 15. Bf4 {[%clk 0:02:07.5]}
15... Qe6 {[%clk 0:00:41.7]} 16. Qxa7 {[%clk 0:02:00.1]} 16... f6 {[%clk
0:00:37.7]} 17. Nxg6 {[%clk 0:01:34.3]} 17... hxg6 {[%clk 0:00:37]} 18. Be3
{[%clk 0:01:23]} 18... Kf7 {[%clk 0:00:27.9]} 19. Qxb7 {[%clk 0:01:18]} 19...
Nxg5 {[%clk 0:00:20.2]} 20. Nf4 {[%clk 0:01:10.4]} 20... Qe4 {[%clk 0:00:19.2]}
21. O-O-O {[%clk 0:00:46.7]} 21... Nxb4 {[%clk 0:00:15.7]} 22. Qxe4 {[%clk
0:00:45.8]} 22... Nxe4 {[%clk 0:00:16.6]} 23. Kb2 {[%clk 0:00:43.9]} 23... g5
{[%clk 0:00:15.9]} 24. Nd3 {[%clk 0:00:41.6]} 24... Nxd3+ {[%clk 0:00:15.6]} 25.
Rxd3 {[%clk 0:00:41]} 25... e6 {[%clk 0:00:15.8]} 26. d5 {[%clk 0:00:38.9]}
26... e5 {[%clk 0:00:14.8]} 27. d6 {[%clk 0:00:37.7]} 27... Bxd6 {[%clk
0:00:13.6]} 28. Rhd1 {[%clk 0:00:36.1]} 28... Bc5 {[%clk 0:00:11.3]} 29. f3
{[%clk 0:00:34]} 29... Bxe3 {[%clk 0:00:10.8]} 30. fxe4 {[%clk 0:00:33.4]} 30...
Bd4+ {[%clk 0:00:10.7]} 31. Kb3 {[%clk 0:00:33.8]} 31... Ra8 {[%clk 0:00:10.7]}
32. a4 {[%clk 0:00:33]} 32... Rh4 {[%clk 0:00:10.4]} 33. Kb4 {[%clk 0:00:27.4]}
33... Rxh3 {[%clk 0:00:09.5]} 34. Rxh3 {[%clk 0:00:24.8]} 34... Rc8 {[%clk
0:00:09.7]} 35. Rhd3 {[%clk 0:00:23.2]} 35... g4 {[%clk 0:00:09.8]} 36. Kb3
{[%clk 0:00:23.1]} 36... g6 {[%clk 0:00:09.7]} 37. a5 {[%clk 0:00:22.1]} 37...
f5 {[%clk 0:00:10]} 38. exf5 {[%clk 0:00:21.1]} 38... gxf5 {[%clk 0:00:10.9]}
39. a6 {[%clk 0:00:20.8]} 39... Rc7 {[%clk 0:00:10.4]} 40. Rxd4 {[%clk
0:00:19.9]} 40... exd4 {[%clk 0:00:10.7]} 41. Rxd4 {[%clk 0:00:20.8]} 41... Ke6
{[%clk 0:00:11.3]} 42. c5 {[%clk 0:00:18.3]} 42... Ke5 {[%clk 0:00:10.8]} 43.
Ra4 {[%clk 0:00:15]} 43... Ra7 {[%clk 0:00:10.1]} 44. c6 {[%clk 0:00:13.4]}
44... Kd6 {[%clk 0:00:10.4]} 45. Rd4+ {[%clk 0:00:11.7]} 45... Kc5 {[%clk
0:00:08.4]} 46. Rd7 {[%clk 0:00:10.7]} 46... Ra8 {[%clk 0:00:08.6]} 47. Ka4
{[%clk 0:00:10.2]} 47... g3 {[%clk 0:00:08.3]} 48. Rg7 {[%clk 0:00:08.8]} 48...
f4 {[%clk 0:00:08.3]} 49. Ka5 {[%clk 0:00:07.5]} 49... Rf8 {[%clk 0:00:06.1]}
50. c7 {[%clk 0:00:05.9]} 50... Kd6 {[%clk 0:00:05.9]} 51. a7 {[%clk 0:00:04.9]}
51... Kc5 {[%clk 0:00:05.2]} 52. Rg5+ {[%clk 0:00:03.9]} 52... Kd6 {[%clk
0:00:04.9]} 53. Ka6 {[%clk 0:00:03.1]} 53... Kxc7 {[%clk 0:00:05]} 54. Rg7+
{[%clk 0:00:02.6]} 54... Kd6 {[%clk 0:00:05.3]} 55. Rg6+ {[%clk 0:00:02.7]}
55... Kc5 {[%clk 0:00:05.6]} 56. Bc6 {[%clk 0:00:01.9]} 56... g2 {[%clk
0:00:04.6]} 0-1

[Event "*** SCC Grand Prix: Titled Tuesday Blitz"]
[Site "Chess.com"]
[Date "2020.06.23"]
[Round "4"]
[White "Oleksandr_Bortnyk"]
[Black "letsgoband"]
[Result "1-0"]
[WhiteElo "2895"]
[BlackElo "2554"]
[TimeControl "180+1"]
[EndTime "10:40:47 PDT"]
[Termination "Oleksandr_Bortnyk won by resignation"]

1. e4 {[%clk 0:03:00.9]} 1... e5 {[%clk 0:02:49.3]} 2. Nf3 {[%clk 0:02:55.3]}
2... Nc6 {[%clk 0:02:49.7]} 3. Bc4 {[%clk 0:02:53.8]} 3... Nf6 {[%clk
0:02:49.8]} 4. Ng5 {[%clk 0:02:53.3]} 4... d5 {[%clk 0:02:50.3]} 5. exd5 {[%clk
0:02:54.2]} 5... Na5 {[%clk 0:02:50.9]} 6. Bb5+ {[%clk 0:02:54.5]} 6... c6
{[%clk 0:02:51.5]} 7. dxc6 {[%clk 0:02:55.4]} 7... bxc6 {[%clk 0:02:51.9]} 8.
Bd3 {[%clk 0:02:55.7]} 8... Nd5 {[%clk 0:02:49.8]} 9. Nf3 {[%clk 0:02:55.3]}
9... Bd6 {[%clk 0:02:48.8]} 10. O-O {[%clk 0:02:56]} 10... O-O {[%clk 0:02:49]}
11. Re1 {[%clk 0:02:56.7]} 11... Qc7 {[%clk 0:02:49.2]} 12. Bf1 {[%clk
0:02:43.5]} 12... f5 {[%clk 0:02:49.3]} 13. d3 {[%clk 0:02:43.9]} 13... c5
{[%clk 0:02:34.9]} 14. Bd2 {[%clk 0:02:36]} 14... Nc6 {[%clk 0:02:06.6]} 15. Na3
{[%clk 0:02:35.1]} 15... Bb7 {[%clk 0:01:59.3]} 16. Nb5 {[%clk 0:02:28.1]} 16...
Qd7 {[%clk 0:01:57.5]} 17. Nxd6 {[%clk 0:02:28.7]} 17... Qxd6 {[%clk 0:01:58.4]}
18. c3 {[%clk 0:02:29.4]} 18... Rad8 {[%clk 0:01:49.8]} 19. Qb3 {[%clk
0:02:27.7]} 19... Rd7 {[%clk 0:01:43.8]} 20. Qa3 {[%clk 0:01:49.7]} 20... Ba8
{[%clk 0:01:27.4]} 21. Re2 {[%clk 0:01:48.6]} 21... Nf6 {[%clk 0:01:20.5]} 22.
Rae1 {[%clk 0:01:46.6]} 22... e4 {[%clk 0:01:19.8]} 23. dxe4 {[%clk 0:01:47.1]}
23... Nxe4 {[%clk 0:01:20.7]} 24. Bc1 {[%clk 0:01:39.4]} 24... Kh8 {[%clk
0:01:13.4]} 25. Re3 {[%clk 0:01:00.2]} 25... h6 {[%clk 0:01:06.2]} 26. Bb5
{[%clk 0:00:40.2]} 26... Qb8 {[%clk 0:00:58.7]} 27. Qa4 {[%clk 0:00:35.9]} 27...
Rc7 {[%clk 0:00:54.2]} 28. Bd3 {[%clk 0:00:22.7]} 28... Nd8 {[%clk 0:00:41]} 29.
Ne5 {[%clk 0:00:22]} 29... Kh7 {[%clk 0:00:20.2]} 30. Nd7 {[%clk 0:00:07.1]}
30... Rxd7 {[%clk 0:00:20.6]} 31. Qxd7 {[%clk 0:00:08]} 31... Bc6 {[%clk
0:00:21.2]} 32. Qe7 {[%clk 0:00:08.4]} 32... Rf7 {[%clk 0:00:21.5]} 33. Qh4
{[%clk 0:00:08.5]} 33... g5 {[%clk 0:00:21.3]} 34. Qh5 {[%clk 0:00:07.9]} 34...
Kg7 {[%clk 0:00:20.8]} 35. Bxe4 {[%clk 0:00:05.4]} 35... Bxe4 {[%clk 0:00:20.8]}
36. f3 {[%clk 0:00:05.6]} 36... Bd5 {[%clk 0:00:20.7]} 37. b3 {[%clk 0:00:03.3]}
37... Qd6 {[%clk 0:00:21]} 38. c4 {[%clk 0:00:03.7]} 38... Bc6 {[%clk
0:00:20.9]} 39. Bb2+ {[%clk 0:00:04.6]} 39... Kg8 {[%clk 0:00:20.2]} 40. Re6
{[%clk 0:00:04.2]} 40... Nxe6 {[%clk 0:00:20]} 41. Qg6+ {[%clk 0:00:04.9]} 41...
Kf8 {[%clk 0:00:18.6]} 42. Qxh6+ {[%clk 0:00:05.3]} 42... Ke7 {[%clk 0:00:17.4]}
43. Qxg5+ {[%clk 0:00:05.8]} 43... Kd7 {[%clk 0:00:16.7]} 44. Qg6 {[%clk
0:00:06]} 44... Re7 {[%clk 0:00:16.6]} 45. Bf6 {[%clk 0:00:05.9]} 45... Re8
{[%clk 0:00:14.6]} 46. Qxf5 {[%clk 0:00:03.4]} 46... Qd2 {[%clk 0:00:06.2]} 47.
Qe5 {[%clk 0:00:03.3]} 47... Qd4+ {[%clk 0:00:05.2]} 48. Qxd4+ {[%clk
0:00:02.4]} 48... Nxd4 {[%clk 0:00:05.3]} 49. Rxe8 {[%clk 0:00:03.3]} 49... Kxe8
{[%clk 0:00:06.2]} 50. Bxd4 {[%clk 0:00:03.9]} 50... cxd4 {[%clk 0:00:06.9]} 51.
Kf2 {[%clk 0:00:04.8]} 51... Kf7 {[%clk 0:00:07.5]} 52. Ke2 {[%clk 0:00:04.9]}
52... Bd7 {[%clk 0:00:08.1]} 53. Kd3 {[%clk 0:00:05.2]} 53... Bf5+ {[%clk
0:00:08.7]} 54. Kxd4 {[%clk 0:00:05.8]} 54... Bb1 {[%clk 0:00:09.1]} 55. a3
{[%clk 0:00:06.3]} 55... Bc2 {[%clk 0:00:09.4]} 56. b4 {[%clk 0:00:06.9]} 56...
Ke6 {[%clk 0:00:09.8]} 57. g3 {[%clk 0:00:06.8]} 57... Bd1 {[%clk 0:00:10.3]}
58. f4 {[%clk 0:00:07.4]} 58... Bg4 {[%clk 0:00:09.8]} 59. Kc5 {[%clk
0:00:07.8]} 59... Kd7 {[%clk 0:00:10.2]} 60. b5 {[%clk 0:00:08.2]} 60... Kc7
{[%clk 0:00:10.4]} 61. a4 {[%clk 0:00:08.8]} 61... Bf3 {[%clk 0:00:10.8]} 62. a5
{[%clk 0:00:09.2]} 62... Bg4 {[%clk 0:00:11.2]} 63. h4 {[%clk 0:00:07.5]} 63...
Bh5 {[%clk 0:00:12.1]} 64. f5 {[%clk 0:00:07.7]} 64... Bg4 {[%clk 0:00:12.6]}
65. f6 {[%clk 0:00:08.2]} 65... Bh5 {[%clk 0:00:13.2]} 66. b6+ {[%clk
0:00:07.4]} 66... axb6+ {[%clk 0:00:13.4]} 67. axb6+ {[%clk 0:00:08.3]} 67...
Kb7 {[%clk 0:00:14]} 68. Kd6 {[%clk 0:00:09.2]} 68... Kxb6 {[%clk 0:00:14.1]}
69. Ke7 {[%clk 0:00:10.1]} 69... Kc5 {[%clk 0:00:14.6]} 70. f7 {[%clk 0:00:11]}
70... Bxf7 {[%clk 0:00:15]} 71. Kxf7 {[%clk 0:00:11.9]} 1-0

[Event "*** SCC Grand Prix: Titled Tuesday Blitz"]
[Site "Chess.com"]
[Date "2020.06.23"]
[Round "4"]
[White "BogdanBelyakov89"]
[Black "Love_craft"]
[Result "1-0"]
[WhiteElo "2593"]
[BlackElo "2436"]
[TimeControl "180+1"]
[EndTime "10:40:47 PDT"]
[Termination "BogdanBelyakov89 won by checkmate"]

1. e4 {[%clk 0:03:00.9]} 1... e5 {[%clk 0:03:00.1]} 2. Nf3 {[%clk 0:03:00.4]}
2... Nc6 {[%clk 0:03:00.2]} 3. Nc3 {[%clk 0:02:59.9]} 3... Nf6 {[%clk
0:02:59.5]} 4. Be2 {[%clk 0:03:00.1]} 4... g6 {[%clk 0:02:54.2]} 5. d4 {[%clk
0:02:56.6]} 5... d6 {[%clk 0:02:49]} 6. Bg5 {[%clk 0:02:42]} 6... h6 {[%clk
0:02:34.2]} 7. Bxf6 {[%clk 0:02:38.8]} 7... Qxf6 {[%clk 0:02:33.2]} 8. Nd5
{[%clk 0:02:38.2]} 8... Qd8 {[%clk 0:02:33]} 9. dxe5 {[%clk 0:02:34.7]} 9...
Nxe5 {[%clk 0:02:16.6]} 10. Nxe5 {[%clk 0:02:24.8]} 10... dxe5 {[%clk
0:02:17.5]} 11. h4 {[%clk 0:02:14.4]} 11... h5 {[%clk 0:01:58.6]} 12. c3 {[%clk
0:02:04.2]} 12... c6 {[%clk 0:01:33.7]} 13. Ne3 {[%clk 0:02:03.5]} 13... Qxd1+
{[%clk 0:01:31.2]} 14. Rxd1 {[%clk 0:02:04.4]} 14... Bc5 {[%clk 0:01:12.8]} 15.
Nc4 {[%clk 0:02:03.1]} 15... f6 {[%clk 0:00:47.5]} 16. b4 {[%clk 0:02:02.2]}
16... Be7 {[%clk 0:00:45.2]} 17. Nd6+ {[%clk 0:02:00.2]} 17... Bxd6 {[%clk
0:00:43.4]} 18. Rxd6 {[%clk 0:02:00.3]} 18... Ke7 {[%clk 0:00:43.5]} 19. Rd2
{[%clk 0:01:53.6]} 19... Be6 {[%clk 0:00:33.8]} 20. O-O {[%clk 0:01:52.3]} 20...
Rhd8 {[%clk 0:00:30.5]} 21. Rfd1 {[%clk 0:01:51.9]} 21... Rxd2 {[%clk
0:00:30.2]} 22. Rxd2 {[%clk 0:01:52.8]} 22... a5 {[%clk 0:00:25.3]} 23. a3
{[%clk 0:01:40.3]} 23... axb4 {[%clk 0:00:25.4]} 24. axb4 {[%clk 0:01:40.3]}
24... Ra1+ {[%clk 0:00:16.4]} 25. Rd1 {[%clk 0:01:39.8]} 25... Ra2 {[%clk
0:00:13.3]} 26. Bd3 {[%clk 0:01:39.4]} 26... Bg4 {[%clk 0:00:12.1]} 27. Rc1
{[%clk 0:01:39]} 27... Ra3 {[%clk 0:00:07.6]} 28. f3 {[%clk 0:01:34.2]} 28...
Be6 {[%clk 0:00:07.7]} 29. Kf2 {[%clk 0:01:34.2]} 29... b6 {[%clk 0:00:08]} 30.
Ke3 {[%clk 0:01:32.2]} 30... c5 {[%clk 0:00:08]} 31. bxc5 {[%clk 0:01:30.3]}
31... bxc5 {[%clk 0:00:08.9]} 32. g3 {[%clk 0:01:29.8]} 32... Bf7 {[%clk
0:00:07.1]} 33. Kd2 {[%clk 0:01:26.1]} 33... Ra2+ {[%clk 0:00:07.1]} 34. Rc2
{[%clk 0:01:26.5]} 34... Rxc2+ {[%clk 0:00:06]} 35. Kxc2 {[%clk 0:01:24.6]}
35... Kd6 {[%clk 0:00:06.4]} 36. Bb5 {[%clk 0:01:18.7]} 36... Kc7 {[%clk
0:00:06.1]} 37. Kb2 {[%clk 0:01:10.2]} 37... Kb6 {[%clk 0:00:06.3]} 38. Bd7
{[%clk 0:01:09.8]} 38... Kc7 {[%clk 0:00:05.8]} 39. Ba4 {[%clk 0:01:09.4]} 39...
Kb6 {[%clk 0:00:05.8]} 40. Ka3 {[%clk 0:01:08.9]} 40... Ka5 {[%clk 0:00:05.4]}
41. Bd7 {[%clk 0:01:08.4]} 41... Kb6 {[%clk 0:00:03.2]} 42. Ka4 {[%clk
0:01:01.7]} 42... g5 {[%clk 0:00:03.4]} 43. Ka3 {[%clk 0:00:53.8]} 43... gxh4
{[%clk 0:00:03.6]} 44. gxh4 {[%clk 0:00:53.3]} 44... Bg6 {[%clk 0:00:03.9]} 45.
Kb3 {[%clk 0:00:51.4]} 45... Bf7+ {[%clk 0:00:03.9]} 46. Kc2 {[%clk 0:00:51.5]}
46... Bg6 {[%clk 0:00:03.9]} 47. Kd3 {[%clk 0:00:51.1]} 47... Bf7 {[%clk
0:00:04.1]} 48. Ke3 {[%clk 0:00:45.9]} 48... Ka5 {[%clk 0:00:03.7]} 49. f4
{[%clk 0:00:46]} 49... Kb6 {[%clk 0:00:03.1]} 50. f5 {[%clk 0:00:45.9]} 50... c4
{[%clk 0:00:02.5]} 51. Kd2 {[%clk 0:00:44.3]} 51... Kc5 {[%clk 0:00:02.4]} 52.
Kc2 {[%clk 0:00:44.1]} 52... Kd6 {[%clk 0:00:01.4]} 53. Ba4 {[%clk 0:00:42.2]}
53... Kc5 {[%clk 0:00:01.7]} 54. Kb2 {[%clk 0:00:41.7]} 54... Kb6 {[%clk
0:00:01.9]} 55. Bd7 {[%clk 0:00:40]} 55... Kc7 {[%clk 0:00:01.7]} 56. Ba4 {[%clk
0:00:40]} 56... Kd6 {[%clk 0:00:02.1]} 57. Ka3 {[%clk 0:00:40.6]} 57... Kc5
{[%clk 0:00:02.6]} 58. Bd7 {[%clk 0:00:39.2]} 58... Kd6 {[%clk 0:00:03]} 59. Bb5
{[%clk 0:00:39.1]} 59... Kc5 {[%clk 0:00:03.7]} 60. Ka4 {[%clk 0:00:39.2]} 60...
Kb6 {[%clk 0:00:03.7]} 61. Kb4 {[%clk 0:00:39.1]} 61... Bg8 {[%clk 0:00:03.1]}
62. Bxc4 {[%clk 0:00:38.9]} 62... Bh7 {[%clk 0:00:02.7]} 63. Be6 {[%clk
0:00:37.3]} 63... Kc7 {[%clk 0:00:02.8]} 64. c4 {[%clk 0:00:37.7]} 64... Kd6
{[%clk 0:00:03.1]} 65. c5+ {[%clk 0:00:37.9]} 65... Kc7 {[%clk 0:00:03.5]} 66.
Kb5 {[%clk 0:00:38.1]} 66... Kd8 {[%clk 0:00:03.7]} 67. Kb6 {[%clk 0:00:37.6]}
67... Ke7 {[%clk 0:00:04.1]} 68. c6 {[%clk 0:00:37.5]} 68... Bxf5 {[%clk
0:00:04.6]} 69. Bxf5 {[%clk 0:00:36.9]} 69... Kd6 {[%clk 0:00:04.4]} 70. c7
{[%clk 0:00:37]} 70... Ke7 {[%clk 0:00:04.7]} 71. c8=Q {[%clk 0:00:37.1]} 71...
Kd6 {[%clk 0:00:04.6]} 72. Qd7# {[%clk 0:00:36.8]} 1-0

[Event "*** SCC Grand Prix: Titled Tuesday Blitz"]
[Site "Chess.com"]
[Date "2020.06.23"]
[Round "4"]
[White "kuban1991"]
[Black "Onischuk_V"]
[Result "0-1"]
[WhiteElo "2724"]
[BlackElo "2876"]
[TimeControl "180+1"]
[EndTime "10:40:48 PDT"]
[Termination "Onischuk_V won on time"]

1. Nf3 {[%clk 0:03:00.1]} 1... g6 {[%clk 0:02:59.3]} 2. d4 {[%clk 0:02:59.4]}
2... Bg7 {[%clk 0:02:59.8]} 3. e4 {[%clk 0:03:00]} 3... d6 {[%clk 0:02:59.6]} 4.
Nc3 {[%clk 0:03:00.5]} 4... Nf6 {[%clk 0:03:00.1]} 5. Bg5 {[%clk 0:03:00.5]}
5... h6 {[%clk 0:02:53.5]} 6. Be3 {[%clk 0:03:00.3]} 6... O-O {[%clk 0:02:52.5]}
7. Qd2 {[%clk 0:02:57.7]} 7... Ng4 {[%clk 0:02:52.1]} 8. Bf4 {[%clk 0:02:58]}
8... e5 {[%clk 0:02:52.3]} 9. dxe5 {[%clk 0:02:58.1]} 9... dxe5 {[%clk
0:02:52.1]} 10. Bg3 {[%clk 0:02:40.5]} 10... Qxd2+ {[%clk 0:02:47.2]} 11. Nxd2
{[%clk 0:02:41.4]} 11... Nd7 {[%clk 0:02:35.9]} 12. h3 {[%clk 0:02:32.5]} 12...
Ngf6 {[%clk 0:02:35.3]} 13. O-O-O {[%clk 0:02:32.4]} 13... Nh5 {[%clk
0:02:20.3]} 14. Bh2 {[%clk 0:02:31.8]} 14... Nb6 {[%clk 0:02:14.9]} 15. Nc4
{[%clk 0:02:21.7]} 15... Nxc4 {[%clk 0:02:11.5]} 16. Bxc4 {[%clk 0:02:22.6]}
16... c6 {[%clk 0:02:11.9]} 17. Rd6 {[%clk 0:02:11]} 17... Kh7 {[%clk
0:01:33.3]} 18. a4 {[%clk 0:02:07.6]} 18... Bf6 {[%clk 0:01:27.5]} 19. g4 {[%clk
0:01:48.7]} 19... Bg5+ {[%clk 0:01:24]} 20. Kb1 {[%clk 0:01:48.3]} 20... Nf4
{[%clk 0:01:24.5]} 21. Bg3 {[%clk 0:01:47.8]} 21... Be7 {[%clk 0:01:20.7]} 22.
Rd2 {[%clk 0:01:38.1]} 22... Kg7 {[%clk 0:01:18.4]} 23. f3 {[%clk 0:01:37.9]}
23... Rd8 {[%clk 0:01:03.1]} 24. Rxd8 {[%clk 0:01:29.5]} 24... Bxd8 {[%clk
0:01:02.9]} 25. Ne2 {[%clk 0:01:24.5]} 25... Bc7 {[%clk 0:00:51.8]} 26. Nxf4
{[%clk 0:01:20.2]} 26... exf4 {[%clk 0:00:51.4]} 27. Bf2 {[%clk 0:01:20.9]}
27... Bd7 {[%clk 0:00:37.1]} 28. Rd1 {[%clk 0:01:17.8]} 28... Be8 {[%clk
0:00:35.7]} 29. Kc1 {[%clk 0:00:52.1]} 29... a6 {[%clk 0:00:31.3]} 30. Bd4+
{[%clk 0:00:48.3]} 30... f6 {[%clk 0:00:30.3]} 31. Bc5 {[%clk 0:00:45.4]} 31...
Rd8 {[%clk 0:00:19.8]} 32. Rxd8 {[%clk 0:00:44.5]} 32... Bxd8 {[%clk 0:00:19.6]}
33. Bd6 {[%clk 0:00:45.4]} 33... g5 {[%clk 0:00:19]} 34. b4 {[%clk 0:00:40.4]}
34... b5 {[%clk 0:00:17.5]} 35. Bb3 {[%clk 0:00:35.3]} 35... a5 {[%clk 0:00:17]}
36. axb5 {[%clk 0:00:19.5]} 36... cxb5 {[%clk 0:00:16.6]} 37. bxa5 {[%clk
0:00:19.9]} 37... Bxa5 {[%clk 0:00:16.2]} 38. Bd5 {[%clk 0:00:17.6]} 38... Bc3
{[%clk 0:00:14.3]} 39. Kd1 {[%clk 0:00:16.1]} 39... Be5 {[%clk 0:00:10.3]} 40.
Bc5 {[%clk 0:00:13.9]} 40... h5 {[%clk 0:00:09.5]} 41. Ke2 {[%clk 0:00:13.9]}
41... h4 {[%clk 0:00:09.2]} 42. Kd3 {[%clk 0:00:14]} 42... Bd7 {[%clk
0:00:09.1]} 43. Bb4 {[%clk 0:00:13.6]} 43... Bc7 {[%clk 0:00:08]} 44. Bc5 {[%clk
0:00:11.2]} 44... Be5 {[%clk 0:00:07.2]} 45. c3 {[%clk 0:00:10.9]} 45... Bc7
{[%clk 0:00:06.8]} 46. Bd4 {[%clk 0:00:10.6]} 46... Bd6 {[%clk 0:00:06]} 47. Kc2
{[%clk 0:00:10.6]} 47... Be7 {[%clk 0:00:05.7]} 48. Kb3 {[%clk 0:00:10.9]} 48...
Kf8 {[%clk 0:00:06.2]} 49. Bb6 {[%clk 0:00:10]} 49... Ke8 {[%clk 0:00:06.1]} 50.
Bc7 {[%clk 0:00:05.8]} 50... Bc5 {[%clk 0:00:05.2]} 51. Ba5 {[%clk 0:00:05.5]}
51... Ke7 {[%clk 0:00:05.1]} 52. Bb4 {[%clk 0:00:05.9]} 52... Kd6 {[%clk
0:00:05.4]} 53. Bf7 {[%clk 0:00:05.6]} 53... Kc6 {[%clk 0:00:04.5]} 54. Bd5+
{[%clk 0:00:05.3]} 54... Kb6 {[%clk 0:00:04.7]} 55. Bf7 {[%clk 0:00:05.8]} 55...
Bc6 {[%clk 0:00:04.2]} 56. Be6 {[%clk 0:00:05.4]} 56... Be8 {[%clk 0:00:03.8]}
57. Bd5 {[%clk 0:00:05.1]} 57... Bd7 {[%clk 0:00:04]} 58. Bf7 {[%clk 0:00:04.9]}
58... Bxg4 {[%clk 0:00:04.1]} 59. fxg4 {[%clk 0:00:01.9]} 59... f3 {[%clk
0:00:04.5]} 60. Bxc5+ {[%clk 0:00:01.7]} 60... Kxc5 {[%clk 0:00:04.3]} 61. e5
{[%clk 0:00:02.2]} 61... f2 {[%clk 0:00:04.5]} 0-1

[Event "*** SCC Grand Prix: Titled Tuesday Blitz"]
[Site "Chess.com"]
[Date "2020.06.23"]
[Round "4"]
[White "GelmanAlexander"]
[Black "Anton_Demchenko"]
[Result "1/2-1/2"]
[WhiteElo "2557"]
[BlackElo "2837"]
[TimeControl "180+1"]
[EndTime "10:40:48 PDT"]
[Termination "Game drawn - insufficient material"]

1. c4 {[%clk 0:03:00.9]} 1... d6 {[%clk 0:02:58.8]} 2. Nf3 {[%clk 0:03:01.1]}
2... Nf6 {[%clk 0:02:58.4]} 3. e3 {[%clk 0:03:01.3]} 3... e5 {[%clk 0:02:57.9]}
4. Nc3 {[%clk 0:03:01.3]} 4... Be7 {[%clk 0:02:57.6]} 5. d4 {[%clk 0:02:59.2]}
5... Nbd7 {[%clk 0:02:53.2]} 6. Be2 {[%clk 0:02:57.5]} 6... O-O {[%clk
0:02:53.2]} 7. b4 {[%clk 0:02:50.3]} 7... Re8 {[%clk 0:02:51]} 8. O-O {[%clk
0:02:49.6]} 8... Bf8 {[%clk 0:02:51]} 9. Bb2 {[%clk 0:02:40.9]} 9... exd4 {[%clk
0:02:33.9]} 10. Nxd4 {[%clk 0:02:38.4]} 10... g6 {[%clk 0:02:33.1]} 11. Qb3
{[%clk 0:02:34.4]} 11... c6 {[%clk 0:02:29.8]} 12. h3 {[%clk 0:02:31.7]} 12...
a5 {[%clk 0:02:20.8]} 13. a3 {[%clk 0:02:31.3]} 13... Bg7 {[%clk 0:02:18]} 14.
Rfd1 {[%clk 0:02:28.3]} 14... Qe7 {[%clk 0:02:18.2]} 15. Qc2 {[%clk 0:02:21.6]}
15... Nb6 {[%clk 0:02:04.8]} 16. Bf1 {[%clk 0:02:20.4]} 16... h5 {[%clk
0:02:01.3]} 17. Rd2 {[%clk 0:01:53.3]} 17... Bh6 {[%clk 0:02:00]} 18. Rad1
{[%clk 0:01:51.7]} 18... axb4 {[%clk 0:01:57.7]} 19. axb4 {[%clk 0:01:51.6]}
19... d5 {[%clk 0:01:58.3]} 20. cxd5 {[%clk 0:01:47.9]} 20... cxd5 {[%clk
0:01:07.9]} 21. Qb3 {[%clk 0:01:26.2]} 21... Bd7 {[%clk 0:01:06.5]} 22. Nf3
{[%clk 0:01:12.1]} 22... Rac8 {[%clk 0:00:54.7]} 23. b5 {[%clk 0:01:07.7]} 23...
Bg7 {[%clk 0:00:35]} 24. Ba1 {[%clk 0:01:06.4]} 24... Bf5 {[%clk 0:00:27.2]} 25.
Nd4 {[%clk 0:01:01.9]} 25... Bd7 {[%clk 0:00:26.2]} 26. Rc1 {[%clk 0:00:57]}
26... Ne4 {[%clk 0:00:22]} 27. Rdd1 {[%clk 0:00:57.3]} 27... Nxf2 {[%clk
0:00:20]} 28. Re1 {[%clk 0:00:47.1]} 28... Nxh3+ {[%clk 0:00:14.3]} 29. gxh3
{[%clk 0:00:46.7]} 29... Qg5+ {[%clk 0:00:15]} 30. Kh1 {[%clk 0:00:46]} 30...
Rxe3 {[%clk 0:00:13.6]} 31. Rxe3 {[%clk 0:00:41]} 31... Qxe3 {[%clk 0:00:14.5]}
32. Nce2 {[%clk 0:00:27.6]} 32... Qxb3 {[%clk 0:00:06.2]} 33. Nxb3 {[%clk
0:00:27.1]} 33... Rxc1 {[%clk 0:00:05.5]} 34. Nexc1 {[%clk 0:00:26.4]} 34... Bf8
{[%clk 0:00:03.6]} 35. Bd4 {[%clk 0:00:25.1]} 35... Nc4 {[%clk 0:00:03.9]} 36.
b6 {[%clk 0:00:21.9]} 36... Bc6 {[%clk 0:00:02.8]} 37. Nd3 {[%clk 0:00:20.1]}
37... Bd6 {[%clk 0:00:01.6]} 38. Bg2 {[%clk 0:00:19.6]} 38... Kf8 {[%clk
0:00:01.2]} 39. Bc5 {[%clk 0:00:19.5]} 39... Ke7 {[%clk 0:00:01.4]} 40. Nd4
{[%clk 0:00:18.7]} 40... Bxc5 {[%clk 0:00:01.6]} 41. Nxc5 {[%clk 0:00:19]} 41...
Nxb6 {[%clk 0:00:01.9]} 42. Kg1 {[%clk 0:00:15.9]} 42... Kd6 {[%clk 0:00:02.3]}
43. Nd3 {[%clk 0:00:14.9]} 43... Nc4 {[%clk 0:00:02.9]} 44. Kf2 {[%clk
0:00:15.4]} 44... b5 {[%clk 0:00:02.9]} 45. Nxc6 {[%clk 0:00:15]} 45... Kxc6
{[%clk 0:00:03.8]} 46. Nb4+ {[%clk 0:00:15.9]} 46... Kc5 {[%clk 0:00:04.4]} 47.
Nxd5 {[%clk 0:00:15.8]} 47... Nd6 {[%clk 0:00:04.8]} 48. Ne3 {[%clk 0:00:14.3]}
48... b4 {[%clk 0:00:05.3]} 49. Ke2 {[%clk 0:00:14.8]} 49... b3 {[%clk
0:00:05.5]} 50. Kd3 {[%clk 0:00:15.4]} 50... f5 {[%clk 0:00:04.1]} 51. h4 {[%clk
0:00:14.8]} 51... f4 {[%clk 0:00:04.2]} 52. Nd5 {[%clk 0:00:14.9]} 52... Nf5
{[%clk 0:00:03.2]} 53. Nxf4 {[%clk 0:00:13.5]} 53... Nxh4 {[%clk 0:00:03.9]} 54.
Be4 {[%clk 0:00:14.4]} 54... b2 {[%clk 0:00:03.6]} 55. Kc2 {[%clk 0:00:14.1]}
55... g5 {[%clk 0:00:03.5]} 56. Nxh5 {[%clk 0:00:13.7]} 56... Kd4 {[%clk
0:00:04.4]} 57. Bb7 {[%clk 0:00:12]} 57... Ke3 {[%clk 0:00:04.4]} 58. Kxb2
{[%clk 0:00:12.5]} 58... Nf5 {[%clk 0:00:04.5]} 59. Kc3 {[%clk 0:00:12.5]} 59...
g4 {[%clk 0:00:04.7]} 60. Bc8 {[%clk 0:00:11.1]} 60... g3 {[%clk 0:00:05.1]} 61.
Bb7 {[%clk 0:00:08.7]} 61... Nd4 {[%clk 0:00:02.5]} 62. Nxg3 {[%clk 0:00:07.5]}
62... Ne2+ {[%clk 0:00:03.4]} 63. Nxe2 {[%clk 0:00:06.8]} 63... Kxe2 {[%clk
0:00:04.3]} 1/2-1/2